bitfinex/quotes_BTCUSD_20251120
["timestamp","ask_amount","ask_price","bid_price","bid_amount"]
[1763669959898,0.00170238,86820.0,86819.0,0.04724127]
[1763669960057,0.00170238,86820.0,86819.0,0.04624127]
[1763669960459,0.00170238,86820.0,86819.0,0.04066]
[1763669960758,0.00170238,86820.0,86819.0,0.03966]
[1763669961137,0.00170238,86820.0,86819.0,0.04066]
[1763669961378,0.00170238,86820.0,86819.0,0.03966]
[1763669963276,0.00170238,86820.0,86819.0,0.04066]
[1763669963481,0.00170238,86820.0,86819.0,0.03966]
[1763669963899,0.00170238,86820.0,86819.0,0.04066]
[1763669964106,0.00170238,86820.0,86819.0,0.01704]
[1763669964307,0.00170238,86820.0,86819.0,0.04066]
[1763669964970,0.00170238,86820.0,86819.0,0.04724127]
[1763669965707,0.00170238,86820.0,86819.0,0.04066]
[1763669966051,0.00170238,86820.0,86819.0,0.03966]
[1763669966260,0.140885,86849.0,86820.0,0.02362]
[1763669966469,0.652452,86847.0,86821.0,0.01133]
[1763669966684,0.01038,86863.0,86823.0,0.11476708]
[1763669966883,0.01038,86863.0,86847.0,0.01604]
[1763669966884,0.279992,86858.0,86847.0,0.01604]
[1763669967103,0.46831752,86860.0,86847.0,0.01604]
[1763669967104,0.53221674,86857.0,86847.0,0.01604]
[1763669967278,0.53221674,86857.0,86824.0,0.37692871]
[1763669967279,0.574137,86855.0,86839.0,0.02362]
[1763669967505,0.01073891,86854.0,86839.0,0.02362]
[1763669967701,0.01073891,86853.0,86839.0,0.02362]
[1763669968037,0.01073891,86852.0,86839.0,0.02395803]
[1763669968195,0.01073891,86851.0,86839.0,0.00033803]
[1763669968394,0.47865643,86850.0,86839.0,0.00033803]
[1763669968601,0.01073891,86849.0,86839.0,0.00033803]
[1763669968869,0.59697307,86848.0,86839.0,0.00033803]
[1763669969042,0.01659,86840.0,86839.0,0.00033803]
[1763669969240,0.02733767,86840.0,86839.0,0.00033803]
[1763669969442,1.0532879,86840.0,86839.0,0.00033803]
[1763669970460,1.0542879,86840.0,86839.0,0.00033803]
[1763669970726,1.022047,86840.0,86839.0,0.00033803]
[1763669972665,1.03281831,86840.0,86839.0,0.00033803]
[1763669972869,0.81489406,86840.0,86839.0,0.00033803]
[1763669973069,0.82053582,86840.0,86839.0,0.00033803]
[1763669973697,0.87263831,86840.0,86839.0,0.00033803]
[1763669975463,0.87263831,86840.0,86807.0,0.01202]
[1763669975464,5.03779349,86839.0,86807.0,0.01202]
[1763669975751,0.46791752,86820.0,86807.0,0.01243757]
[1763669976178,0.116794,86819.0,86807.0,0.01243757]
[1763669976445,0.03237894,86818.0,86807.0,0.00041757]
[1763669976645,0.46791752,86820.0,86807.0,0.00041757]
[1763669976646,0.03237894,86817.0,86807.0,0.00041757]
[1763669976763,0.46791752,86820.0,86807.0,0.00041757]
[1763669976764,0.03237894,86816.0,86807.0,0.00041757]
[1763669977115,0.46791752,86820.0,86807.0,0.00041757]
[1763669977116,0.02158581,86815.0,86807.0,0.00041757]
[1763669977316,0.03237672,86814.0,86807.0,0.00041757]
[1763669977494,0.03237672,86813.0,86807.0,0.00041757]
[1763669977698,0.03237672,86812.0,86807.0,0.00041757]
[1763669977906,0.03237672,86811.0,86807.0,0.00041757]
[1763669978104,0.03237672,86810.0,86807.0,0.00041757]
[1763669978308,0.32801,86819.0,86807.0,0.00041757]
[1763669978309,0.00501,86808.0,86807.0,0.00041757]
[1763669978629,0.03738672,86808.0,86807.0,0.00041757]
[1763669979712,0.39586572,86808.0,86807.0,0.00041757]
[1763669980797,0.17129613,86808.0,86807.0,0.00041757]
[1763669982093,0.49429613,86808.0,86807.0,0.00041757]
[1763669983110,0.54639862,86808.0,86807.0,0.00041757]
[1763669983489,0.54739862,86808.0,86807.0,0.00041757]
[1763669983926,0.643146,86808.0,86807.0,0.00041757]
[1763669984816,0.642146,86808.0,86807.0,0.00041757]
[1763669985167,0.554585,86808.0,86807.0,0.00041757]
[1763669985367,0.323,86808.0,86807.0,0.00041757]
[1763669985774,0.172222,86808.0,86807.0,0.00041757]
[1763669985978,0.171222,86808.0,86807.0,0.00041757]
[1763669986401,0.671222,86808.0,86807.0,0.00041757]
[1763669986985,0.671222,86808.0,86807.0,0.05041757]
[1763669988313,0.323,86827.0,86807.0,0.09693133]
[1763669988514,0.323,86819.0,86808.0,0.01606]
[1763669988856,0.323,86817.0,86807.0,0.05041757]
[1763669989263,0.936466,86816.0,86807.0,0.05041757]
[1763669989401,0.215068,86816.0,86807.0,0.05041757]
[1763669991524,0.323,86818.0,86807.0,0.05041757]
[1763669991972,0.78336783,86820.0,86807.0,0.05041757]
[1763669992163,0.11476708,86848.0,86819.0,0.01606]
[1763669992164,0.00025274,86828.0,86819.0,0.01606]
[1763669992366,0.353192,86825.0,86819.0,0.01606]
[1763669992698,0.323,86826.0,86819.0,0.01606]
[1763669992913,0.323,86826.0,86807.0,0.05041757]
[1763669992914,0.884642,86824.0,86810.0,0.01202]
[1763669993043,0.78336783,86820.0,86807.0,0.05041757]
[1763669993241,0.03228201,86819.0,86807.0,0.05041757]
[1763669993426,0.166517,86817.0,86807.0,0.05041757]
[1763669993624,0.106943,86815.0,86807.0,0.05041757]
[1763669994031,0.205544,86818.0,86807.0,0.05041757]
[1763669994233,0.205884,86816.0,86807.0,0.05041757]
[1763669994500,0.205851,86817.0,86807.0,0.05041757]
[1763669994693,0.365121,86815.0,86807.0,0.05041757]
[1763669994893,0.5,86818.0,86807.0,0.05041757]
[1763669994894,0.51076488,86814.0,86807.0,0.05041757]
[1763669995091,0.01076488,86813.0,86807.0,0.05041757]
[1763669995333,0.01076488,86812.0,86807.0,0.05041757]
[1763669995609,0.01076891,86811.0,86807.0,0.05041757]
[1763669995821,0.520754,86817.0,86807.0,0.05041757]
[1763669995963,0.48663,86815.0,86807.0,0.05041757]
[1763669996168,0.323,86818.0,86807.0,0.05041757]
[1763669996169,0.51076893,86814.0,86807.0,0.05041757]
[1763669996542,1.28336783,86820.0,86807.0,0.05041757]
[1763669996543,0.01076893,86813.0,86807.0,0.05041757]
[1763669996724,0.01076893,86812.0,86807.0,0.05041757]
[1763669996923,0.01076893,86811.0,86807.0,0.05041757]
[1763669997070,0.323,86819.0,86807.0,0.05041757]
[1763669997266,0.828087,86817.0,86807.0,0.05041757]
[1763669997476,0.747891,86815.0,86807.0,0.05041757]
[1763669997678,0.411311,86813.0,86807.0,0.05041757]
[1763669997873,0.03233642,86812.0,86807.0,0.05041757]
[1763669998078,0.03233642,86811.0,86807.0,0.05041757]
[1763669998312,0.03236114,86810.0,86807.0,0.05041757]
[1763669998477,0.03236114,86809.0,86807.0,0.05041757]
[1763669998678,0.03236114,86808.0,86807.0,0.05041757]
[1763669999111,0.0107737,86808.0,86807.0,0.05041757]
[1763669999570,0.0107737,86816.0,86807.0,0.05041757]
[1763669999690,0.74381336,86815.0,86807.0,0.05012819]
[1763669999889,0.948888,86813.0,86807.0,0.05012819]
[1763670000085,0.03237636,86812.0,86807.0,0.05012819]
[1763670000344,0.03237636,86811.0,86807.0,0.05012819]
[1763670000542,0.78336783,86820.0,86810.0,0.01202]
[1763670000543,0.323,86815.0,86810.0,0.01202]
[1763670000852,0.53241767,86814.0,86810.0,0.01202]
[1763670001041,0.141666,86812.0,86810.0,0.01202]
[1763670001243,0.03241767,86811.0,86810.0,0.02065582]
[1763670001464,0.03241767,86811.0,86810.0,0.01202]
[1763670002185,0.03241767,86811.0,86810.0,0.05229]
[1763670002389,0.19789,86810.0,86807.0,0.05012819]
[1763670002600,0.03241767,86809.0,86807.0,0.05012819]
[1763670002807,0.03241767,86808.0,86807.0,0.06627201]
[1763670002983,0.03241767,86808.0,86807.0,0.05012819]
[1763670003620,0.03241873,86808.0,86807.0,0.05012819]
[1763670004042,0.01080695,86808.0,86807.0,0.08929819]
[1763670004246,0.323,86826.0,86807.0,0.08929819]
[1763670004456,0.70157411,86825.0,86808.0,0.01144328]
[1763670004672,0.19576211,86824.0,86808.0,0.02366]
[1763670004877,1.446281,86819.0,86807.0,0.05012819]
[1763670005088,0.939787,86817.0,86807.0,0.05012819]
[1763670005275,0.03242011,86816.0,86807.0,0.05012819]
[1763670005483,0.03242011,86815.0,86807.0,0.05012819]
[1763670005649,0.03242011,86814.0,86807.0,0.05012819]
[1763670005861,0.03242011,86813.0,86807.0,0.05012819]
[1763670006067,0.14479885,86819.0,86807.0,0.05012819]
[1763670006453,0.01080262,86818.0,86808.0,0.02366]
[1763670006648,0.01080262,86818.0,86807.0,0.05012819]
[1763670006649,0.776193,86818.0,86807.0,0.05012819]
[1763670006850,0.5,86819.0,86807.0,0.05012819]
[1763670006851,1.755702,86819.0,86807.0,0.05012819]
[1763670007071,1.53614,86819.0,86807.0,0.05012819]
[1763670007282,1.32289455,86819.0,86807.0,0.05012819]
[1763670007423,1.387458,86818.0,86807.0,0.05012819]
[1763670007761,0.11476708,86819.0,86807.0,0.05012819]
[1763670008446,3.0,86818.0,86807.0,0.05012819]
[1763670008645,0.11476708,86819.0,86807.0,0.05012819]
[1763670008646,3.0,86816.0,86807.0,0.05012819]
[1763670009452,3.0,86816.0,86815.0,0.01131]
[1763670009632,3.0,86827.0,86815.0,0.02682]
[1763670009842,3.0,86818.0,86815.0,0.02682]
[1763670010270,0.00025274,86828.0,86815.0,0.02682]
[1763670010271,3.0,86827.0,86815.0,0.01131]
[1763670010675,3.0,86827.0,86816.0,0.02366]
[1763670010877,3.0,86827.0,86826.0,0.01551]
[1763670011374,3.0,86827.0,86807.0,0.05012819]
[1763670011572,0.78336783,86820.0,86807.0,0.05012819]
[1763670011772,3.0,86827.0,86807.0,0.05012819]
[1763670011974,3.0,86827.0,86807.0,0.07378819]
[1763670012519,3.0,86827.0,86807.0,0.05012819]
[1763670012867,0.323,86817.0,86807.0,0.05012819]
[1763670013187,3.0,86816.0,86808.0,0.02366]
[1763670013408,3.0,86816.0,86807.0,0.05012819]
[1763670014021,0.323,86817.0,86807.0,0.05012819]
[1763670014022,3.0,86813.0,86807.0,0.05012819]
[1763670014722,0.01808483,86814.0,86807.0,0.05012819]
[1763670015884,0.323,86812.0,86807.0,0.05012819]
[1763670016086,3.0,86809.0,86807.0,0.05012819]
[1763670016289,0.323,86810.0,86807.0,0.05012819]
[1763670016290,0.001,86813.0,86807.0,0.05012819]
[1763670016491,0.323,86812.0,86807.0,0.05012819]
[1763670016693,0.323,86808.0,86807.0,0.05012819]
[1763670018016,0.323,86812.0,86807.0,0.06563819]
[1763670018233,0.323,86808.0,86807.0,0.06563819]
[1763670018431,0.3554348,86808.0,86807.0,0.06563819]
[1763670018897,0.3554348,86808.0,86807.0,0.05012819]
[1763670019091,3.3554348,86808.0,86807.0,0.05012819]
[1763670019294,3.38655222,86808.0,86807.0,0.05012819]
[1763670019976,3.3554348,86808.0,86807.0,0.05012819]
[1763670020770,0.0324348,86808.0,86807.0,0.05012819]
[1763670021612,0.0324348,86808.0,86807.0,0.10544201]
[1763670021820,0.0324348,86808.0,86807.0,0.06563819]
[1763670022232,0.01081159,86808.0,86807.0,0.08929819]
[1763670022435,0.01808483,86814.0,86807.0,0.08929819]
[1763670022634,0.323,86826.0,86813.0,0.01551]
[1763670022963,0.03241032,86825.0,86813.0,0.01551]
[1763670023125,0.03241032,86824.0,86814.0,0.02366]
[1763670023292,0.03241032,86823.0,86814.0,0.02366]
[1763670023500,0.03241032,86822.0,86815.0,0.01131]
[1763670023699,3.0,86818.0,86807.0,0.05012819]
[1763670023954,0.323,86815.0,86807.0,0.05012819]
[1763670024159,0.323,86811.0,86807.0,0.05012819]
[1763670024447,0.03241032,86810.0,86807.0,0.05012819]
[1763670024649,0.03241032,86809.0,86807.0,0.05012819]
[1763670024864,0.323,86811.0,86807.0,0.05012819]
[1763670024865,0.03240277,86808.0,86807.0,0.05012819]
[1763670025205,3.35540277,86808.0,86807.0,0.05012819]
[1763670025626,3.38649877,86808.0,86807.0,0.05012819]
[1763670025840,3.37348985,86808.0,86807.0,0.05012819]
[1763670026035,3.35189052,86808.0,86807.0,0.05012819]
[1763670026252,3.37348516,86808.0,86807.0,0.05012819]
[1763670026653,3.37348237,86808.0,86807.0,0.05012819]
[1763670030710,0.37510249,86807.0,86772.0,0.01131]
[1763670030958,0.37510249,86807.0,86776.0,0.01146]
[1763670030959,3.48986957,86801.0,86776.0,0.01146]
[1763670031174,3.55336915,86801.0,86776.0,0.01146]
[1763670031392,3.52226486,86801.0,86776.0,0.03581]
[1763670031555,3.47016237,86801.0,86776.0,0.03581]
[1763670032291,3.47116237,86801.0,86776.0,0.03581]
[1763670032507,3.47016237,86801.0,86776.0,0.03581]
[1763670032732,3.47016237,86801.0,86781.0,0.02265]
[1763670032915,3.47116237,86801.0,86781.0,0.02265]
[1763670033107,3.47016237,86801.0,86781.0,0.02265]
[1763670033560,3.47116237,86801.0,86781.0,0.02265]
[1763670033782,3.47116237,86801.0,86777.0,0.00184402]
[1763670033783,3.35639529,86801.0,86789.0,0.02265]
[1763670033994,3.03339529,86801.0,86789.0,0.02265]
[1763670034212,3.01180344,86801.0,86789.0,0.02265]
[1763670034429,3.324,86801.0,86789.0,0.02265]
[1763670034645,3.323,86801.0,86789.0,0.02265]
[1763670034817,3.33378686,86801.0,86789.0,0.02265]
[1763670035021,3.33478686,86801.0,86789.0,0.02265]
[1763670035439,3.001,86801.0,86800.0,0.14927]
[1763670035640,0.001,86801.0,86800.0,0.14927]
[1763670035842,0.001,86801.0,86800.0,0.13927]
[1763670036016,0.001,86801.0,86800.0,0.11662]
[1763670036665,0.01908558,86801.0,86800.0,0.11662]
[1763670036855,0.01908558,86801.0,86800.0,0.13927]
[1763670037764,0.01808558,86801.0,86800.0,0.153197]
[1763670039163,0.01808558,86801.0,86800.0,0.154197]
[1763670039497,0.01808558,86801.0,86800.0,0.153197]
[1763670039701,0.01808558,86801.0,86800.0,0.20529949]
[1763670039905,0.00041778,86807.0,86801.0,0.05210249]
[1763670040080,0.21039999,86870.0,86801.0,0.05210249]
[1763670040081,0.04918987,86853.0,86811.0,0.323]
[1763670040283,0.04187343,86860.0,86827.0,0.02853]
[1763670040284,3.0,86852.0,86827.0,0.02853]
[1763670040487,0.0004,86860.0,86827.0,0.02853]
[1763670040488,3.0,86859.0,86850.0,0.01191]
[1763670040651,0.0004,86860.0,86850.0,0.01191]
[1763670040853,0.0004,86860.0,86859.0,0.02853]
[1763670041051,0.03462034,86867.0,86859.0,0.05118]
[1763670041261,0.0004,86870.0,86866.0,0.01662]
[1763670041470,0.0004,86870.0,86865.0,0.11476708]
[1763670041471,3.0,86887.0,86869.0,0.01662]
[1763670041747,0.0004,86890.0,86870.0,0.78336783]
[1763670041748,0.01807105,86872.0,86870.0,0.78336783]
[1763670041915,0.0004,86890.0,86871.0,0.03927]
[1763670042122,0.0004,86890.0,86887.0,0.01662]
[1763670042498,0.11806821,86888.0,86887.0,0.03927]
[1763670044935,0.11806821,86888.0,86887.0,0.04027]
[1763670045375,0.11806821,86888.0,86887.0,0.01762]
[1763670045584,0.11806821,86888.0,86887.0,0.001]
[1763670045783,3.11806821,86888.0,86887.0,0.001]
[1763670046010,0.11806821,86888.0,86887.0,0.04027]
[1763670046648,0.11806821,86888.0,86887.0,0.001]
[1763670047038,0.11806821,86888.0,86877.0,0.02265]
[1763670047443,0.11806821,86888.0,86887.0,0.01662]
[1763670047805,0.11806821,86888.0,86887.0,0.03927]
[1763670048043,0.09306821,86888.0,86887.0,0.03927]
[1763670049729,0.09306821,86888.0,86887.0,0.05118]
[1763670051471,0.09496236,86888.0,86887.0,0.05118]
[1763670053303,0.09496236,86888.0,86887.0,0.02853]
[1763670053304,0.07689415,86888.0,86887.0,0.02853]
[1763670053508,0.09496201,86888.0,86884.0,0.01191]
[1763670053705,0.09306786,86888.0,86884.0,0.01191]
[1763670053908,0.075,86888.0,86887.0,0.001]
[1763670054265,0.075,86888.0,86871.0,0.01191]
[1763670054266,3.0,86884.0,86871.0,0.01191]
[1763670054660,0.323,86886.0,86871.0,0.01191]
[1763670054835,0.323,86884.0,86871.0,0.01191]
[1763670055850,0.075,86888.0,86872.0,0.01381342]
[1763670056069,0.075,86888.0,86883.0,0.01662]
[1763670056405,0.075,86888.0,86873.0,0.05147379]
[1763670056406,0.075,86888.0,86887.0,0.01662]
[1763670056756,0.075,86888.0,86887.0,0.03927]
[1763670056960,0.09306932,86888.0,86887.0,0.03927]
[1763670057430,0.075,86888.0,86887.0,0.00997]
[1763670057625,0.075,86888.0,86887.0,0.02659]
[1763670058462,0.075,86888.0,86887.0,0.02759]
[1763670058664,0.075,86888.0,86887.0,0.02659]
[1763670059855,0.075,86888.0,86887.0,0.02759]
[1763670060263,0.07689415,86888.0,86887.0,0.02759]
[1763670061588,0.11476708,86939.0,86887.0,0.02759]
[1763670061589,0.0004,86930.0,86887.0,0.07969249]
[1763670061789,0.0004,86930.0,86911.0,0.05210249]
[1763670061990,0.0004,86930.0,86929.0,0.02833]
[1763670062427,0.0004,86930.0,86929.0,0.05158]
[1763670062844,0.00172481,86930.0,86929.0,0.05158]
[1763670063035,0.00214337,86930.0,86929.0,0.05158]
[1763670063955,0.02019958,86930.0,86929.0,0.05158]
[1763670066750,0.00214337,86930.0,86929.0,0.05158]
[1763670069904,0.00214337,86930.0,86929.0,0.10368249]
[1763670070090,0.02019715,86930.0,86929.0,0.11405074]
[1763670070287,0.02019715,86930.0,86929.0,0.10368249]
[1763670071590,0.0002,86960.0,86950.0,0.07910285]
[1763670071711,0.01805407,86953.0,86950.0,0.07914802]
[1763670071910,0.01072182,86952.0,86950.0,0.07914802]
[1763670072146,0.01072182,86951.0,86950.0,0.07914802]
[1763670072933,0.01072182,86951.0,86950.0,0.10494782]
[1763670073364,0.0002,86960.0,86950.0,0.10494782]
[1763670073568,0.26551451,86969.0,86950.0,0.10494782]
[1763670073798,0.001,86951.0,86950.0,0.09470802]
[1763670074480,3.0,86958.0,86950.0,0.09470802]
[1763670074693,3.0,86956.0,86950.0,0.09470802]
[1763670075050,0.02143312,86955.0,86950.0,0.09470802]
[1763670075264,3.0,86953.0,86950.0,0.09470802]
[1763670075433,0.02143312,86952.0,86950.0,0.09470802]
[1763670075606,3.0,86951.0,86950.0,0.09470802]
[1763670075817,3.02143312,86951.0,86950.0,0.07914802]
[1763670076020,3.02143312,86951.0,86950.0,0.09470802]
[1763670076239,3.34443312,86951.0,86950.0,0.09470802]
[1763670076446,3.34443312,86951.0,86950.0,0.07914802]
[1763670076447,3.34543312,86951.0,86950.0,0.07914802]
[1763670076960,3.02243312,86951.0,86950.0,0.07914802]
[1763670077161,3.0230952,86951.0,86950.0,0.07914802]
[1763670078937,0.0230952,86951.0,86950.0,0.07914802]
[1763670079357,0.00166208,86951.0,86950.0,0.07914802]
[1763670082624,0.01971465,86951.0,86950.0,0.07914802]
[1763670082845,0.46631926,86990.0,86950.0,0.07914802]
[1763670083016,0.01805206,86963.0,86950.0,0.07914802]
[1763670083217,0.01805206,86963.0,86955.0,0.11476708]
[1763670083415,0.46631926,86980.0,86951.0,0.0079148]
[1763670083416,3.0,86979.0,86951.0,0.0079148]
[1763670083623,0.01805222,86963.0,86955.0,0.11476708]
[1763670083845,0.46631926,86980.0,86955.0,0.11476708]
[1763670084027,0.08536201,86992.0,86951.0,0.0079148]
[1763670084028,0.01805219,86963.0,86951.0,0.0079148]
[1763670084332,0.02143021,86962.0,86950.0,0.07914802]
[1763670084573,0.02143021,86961.0,86950.0,0.07914802]
[1763670084783,0.01805277,86963.0,86955.0,0.11476708]
[1763670084784,0.01946773,86960.0,86955.0,0.11476708]
[1763670085012,0.002,86979.0,86956.0,0.44633618]
[1763670085218,0.002,86979.0,86978.0,0.11476708]
[1763670085733,0.01804475,87008.0,86978.0,0.11476708]
[1763670085909,0.01072396,87007.0,86980.0,0.46631926]
[1763670086143,0.01072396,87006.0,86980.0,0.46631926]
[1763670086386,0.01072396,87005.0,86993.0,0.11476708]
[1763670086576,0.01072396,87004.0,86993.0,0.11476708]
[1763670086787,0.01176,87007.0,86993.0,0.11476708]
[1763670086958,0.01072305,87006.0,86994.0,0.05810863]
[1763670087193,0.01176,87007.0,86994.0,0.05810863]
[1763670087393,0.01804475,87008.0,86996.0,0.46631926]
[1763670087546,0.01804475,87008.0,87007.0,0.11476708]
[1763670087713,0.01804475,87008.0,87007.0,0.13032708]
[1763670087912,0.0004,87020.0,87007.0,0.16660979]
[1763670088165,0.0004,87020.0,87010.0,0.46631926]
[1763670088714,0.00081882,87020.0,87011.0,0.07535249]
[1763670088918,0.00081882,87020.0,87019.0,0.01556]
[1763670089111,0.00081882,87020.0,87019.0,0.06766249]
[1763670089316,0.00299225,87020.0,87019.0,0.10000374]
[1763670089958,0.00299225,87020.0,87019.0,0.06219374]
[1763670090277,0.00299225,87020.0,87019.0,0.00909125]
[1763670090436,0.00299225,87020.0,87008.0,0.01097]
[1763670090437,0.01804225,87020.0,87008.0,0.33397]
[1763670090649,0.01586882,87020.0,87019.0,0.001]
[1763670091215,0.00081882,87020.0,87019.0,0.001]
[1763670091416,0.00081882,87020.0,87019.0,0.04121]
[1763670091585,0.00081882,87020.0,87019.0,0.16203349]
[1763670091586,0.00299225,87020.0,87019.0,0.16203349]
[1763670091825,0.00299225,87020.0,87019.0,0.13803349]
[1763670092041,0.00299225,87020.0,87013.0,0.323]
[1763670092172,0.01586882,87020.0,87013.0,0.323]
[1763670092776,0.01586882,87020.0,87012.0,0.323]
[1763670093094,0.00081882,87020.0,87019.0,0.001]
[1763670093297,0.00081882,87020.0,87011.0,0.11476708]
[1763670093498,0.00081882,87020.0,87012.0,0.01147671]
[1763670093698,0.02553882,87020.0,87013.0,0.001]
[1763670093867,0.02553882,87020.0,87011.0,0.11476708]
[1763670094690,0.00081882,87020.0,87012.0,0.01097]
[1763670095270,0.00081882,87020.0,87019.0,0.001]
[1763670095472,0.00081882,87020.0,87019.0,0.01666]
[1763670095687,0.00081882,87020.0,87013.0,0.05210249]
[1763670096305,0.00081882,87020.0,87019.0,0.001]
[1763670096798,0.00081882,87020.0,87013.0,0.05210249]
[1763670097000,0.00081882,87020.0,87013.0,0.001]
[1763670097202,0.02553882,87020.0,87013.0,0.001]
[1763670097503,0.00198457,87014.0,87013.0,0.001]
[1763670097874,0.00198457,87014.0,87013.0,0.08073249]
[1763670098179,0.00198457,87014.0,87013.0,0.10382249]
[1763670099141,0.00198457,87014.0,87013.0,0.10482249]
[1763670099473,0.00198457,87014.0,87013.0,0.07973249]
[1763670099662,0.00198457,87014.0,87013.0,0.10582249]
[1763670099862,0.00198457,87014.0,87013.0,0.11943145]
[1763670100636,0.00198457,87014.0,87013.0,0.13609145]
[1763670101098,0.01105457,87014.0,87013.0,0.05410249]
[1763670101310,0.01105457,87014.0,87011.0,0.11476708]
[1763670101311,0.02714457,87014.0,87011.0,0.11476708]
[1763670101505,0.02714457,87014.0,87011.0,0.43776708]
[1763670101506,0.01609,87012.0,87011.0,0.43776708]
[1763670101706,0.00907,87014.0,87011.0,0.43776708]
[1763670101886,0.00907,87014.0,87011.0,0.11476708]
[1763670102087,0.01609,87012.0,86984.0,0.0306259]
[1763670102323,0.02472,87013.0,86980.0,0.49694516]
[1763670102324,0.01176,86995.0,86980.0,0.49694516]
[1763670102642,0.01176,86995.0,86980.0,0.47631925]
[1763670103180,0.01176,86995.0,86985.0,0.46631926]
[1763670104020,0.01176,86995.0,86982.0,0.05210249]
[1763670104202,0.04081,86994.0,86979.0,0.323]
[1763670104399,0.04081,86994.0,86980.0,0.46631926]
[1763670104580,0.01609,86994.0,86980.0,0.47631925]
[1763670104811,0.01177,87007.0,86993.0,0.14290379]
[1763670104998,0.01177,87007.0,86993.0,0.12724379]
[1763670105202,0.01177,87007.0,86997.0,0.46631926]
[1763670106101,1.00907,87014.0,86997.0,0.46631926]
[1763670106102,0.85161356,87014.0,87013.0,0.01135]
[1763670106513,0.85161356,87014.0,87005.0,0.323]
[1763670106725,0.85161356,87014.0,87013.0,0.11476708]
[1763670107157,0.86417813,87014.0,87007.0,0.11476708]
[1763670107336,0.86219356,87014.0,87007.0,0.11476708]
[1763670108665,0.01058,87008.0,86994.0,0.323]
[1763670108972,0.01058,87008.0,86993.0,0.12624379]
[1763670109169,0.01058,87008.0,86994.0,0.05876149]
[1763670109370,0.01058,87008.0,87007.0,0.11476708]
[1763670109806,0.85161356,87014.0,87007.0,0.11476708]
[1763670110210,0.85161356,87014.0,86997.0,0.01135]
[1763670110414,0.85161356,87014.0,86995.0,0.05210249]
[1763670110415,0.01058,87008.0,86995.0,0.05210249]
[1763670110573,0.01058,87008.0,86996.0,0.02371078]
[1763670111307,0.85161356,87014.0,86993.0,0.11476708]
[1763670111308,0.85161356,87014.0,87007.0,0.11476708]
[1763670111651,0.01058,87008.0,86994.0,0.05210249]
[1763670112689,0.01237569,87008.0,86994.0,0.05210249]
[1763670112892,0.85161356,87014.0,87007.0,0.11476708]
[1763670113103,0.01072784,87013.0,87008.0,0.01379183]
[1763670113360,0.85161356,87014.0,87009.0,0.01285589]
[1763670113488,0.85161356,87014.0,87010.0,0.01379151]
[1763670113688,0.85261356,87014.0,87010.0,0.01379151]
[1763670113929,0.85161356,87014.0,87010.0,0.01379151]
[1763670114249,0.01075542,87013.0,87007.0,0.11476708]
[1763670114443,0.01075542,87012.0,87007.0,0.11476708]
[1763670114643,0.01075542,87011.0,87007.0,0.11476708]
[1763670114806,0.85161356,87014.0,87007.0,0.11476708]
[1763670115010,0.0107554,87013.0,87007.0,0.11476708]
[1763670115348,0.0107554,87012.0,87009.0,0.0306259]
[1763670115536,0.85161356,87014.0,87009.0,0.0306259]
[1763670115537,0.0107554,87011.0,87009.0,0.0306259]
[1763670115695,0.01803873,87012.0,87007.0,0.11476708]
[1763670115901,0.85161356,87014.0,87007.0,0.11476708]
[1763670116104,0.01076159,87013.0,87009.0,0.04141287]
[1763670116356,0.01076159,87012.0,87011.0,0.04141287]
[1763670116719,0.01076159,87013.0,87011.0,0.04141287]
[1763670116918,0.01076159,87012.0,87008.0,0.04141287]
[1763670117265,0.85161356,87014.0,87008.0,0.04141287]
[1763670117266,0.01076159,87011.0,87008.0,0.04141287]
[1763670117474,0.01076159,87010.0,87009.0,0.07816947]
[1763670117622,0.85161356,87014.0,87009.0,0.09887591]
[1763670117964,0.85161356,87014.0,87013.0,0.05210249]
[1763670118163,0.86219356,87014.0,87013.0,0.05210249]
[1763670118509,0.86417813,87014.0,87013.0,0.05210249]
[1763670118721,0.88221535,87014.0,87013.0,0.43462119]
[1763670119136,0.03060179,87014.0,87013.0,0.11476708]
[1763670120393,0.04137155,87014.0,87013.0,0.14575587]
[1763670120806,0.03060179,87014.0,87013.0,0.11476708]
[1763670121055,0.03060179,87014.0,87013.0,0.13175372]
[1763670121254,0.00081882,87020.0,87014.0,0.05210249]
[1763670121579,0.00081882,87020.0,87016.0,0.37510249]
[1763670121713,0.00081882,87020.0,87018.0,0.05210249]
[1763670123323,0.00081882,87020.0,87015.0,0.05210249]
[1763670123530,0.00081882,87020.0,87019.0,0.37510249]
[1763670123686,0.00081882,87020.0,87019.0,0.43699346]
[1763670123888,0.00081882,87020.0,87019.0,0.323]
[1763670124087,0.00081882,87020.0,87013.0,0.13175372]
[1763670124291,0.00081882,87020.0,87018.0,0.002]
[1763670124505,0.01885389,87020.0,87018.0,0.01579025]
[1763670124709,0.01885389,87020.0,87014.0,0.01379088]
[1763670124909,0.01885389,87020.0,87019.0,0.002]
[1763670125831,0.01885389,87020.0,87019.0,0.0150558]
[1763670126036,0.01885389,87020.0,87019.0,0.02884589]
[1763670126192,0.01885389,87020.0,87019.0,0.0150558]
[1763670126393,0.01885389,87020.0,87019.0,0.002]
[1763670126629,0.01885389,87020.0,87017.0,0.03096802]
[1763670126832,0.01885389,87020.0,87013.0,0.1457351]
[1763670127037,0.01885389,87020.0,87013.0,0.11476708]
[1763670128087,0.01885389,87020.0,87014.0,0.01379088]
[1763670128285,0.01885389,87020.0,87013.0,0.11476708]
[1763670128406,0.01885389,87020.0,87014.0,0.0973945]
[1763670128615,0.01885389,87020.0,87013.0,0.11476708]
[1763670128965,0.01885389,87020.0,87016.0,0.03096802]
[1763670129162,0.01885389,87020.0,87014.0,0.06589337]
[1763670129163,0.01885389,87020.0,87017.0,0.0137904]
[1763670129609,0.01885389,87020.0,87018.0,0.05210249]
[1763670129782,0.00081882,87020.0,87018.0,0.37510249]
[1763670130201,0.00081882,87020.0,87018.0,0.38027854]
[1763670130402,0.00081882,87020.0,87018.0,0.37817605]
[1763670130605,0.00081882,87020.0,87017.0,0.06187697]
[1763670130606,0.00081882,87020.0,87017.0,0.04125872]
[1763670130789,0.00081882,87020.0,87018.0,0.001]
[1763670130935,0.00081882,87020.0,87018.0,0.01479025]
[1763670131143,0.00081882,87020.0,87019.0,0.04125872]
[1763670131345,0.00081882,87020.0,87019.0,0.0555693]
[1763670132651,0.00081882,87020.0,87019.0,0.11744627]
[1763670132845,0.00081882,87020.0,87019.0,0.12146188]